Workbook

Sheet Stump Analysis Data
A1: Instructions: 1. First reset the sheet using the button Reset Sheet 2. Enter the number of groups in the cell highlighted below 3. Prepare the sheet by using the button Prepare Sheet 4. Enter the data and move on to the next sheet Seedling Data *Please enter values only in cells that are highlighted in GREY | J1: Data of Stump Analysis
J2: Diameter at successive Decades | S2: Species:- | T2: Shorea Robusta
B6: No of groups in the class | E6: 11
B8: Row Status | C8: Group No. | D8: Stump Height (cm) | E8: G(ob) Stumps | F8: Average diameter of decades in cms
F9: 1 (10 yrs) | G9: 2 (20 yrs) | H9: 3 (30 yrs) | I9: 4 (40 yrs) | J9: 5 (50 yrs) | K9: 6 (60 yrs) | L9: 7 (70 yrs) | M9: 8 (80 yrs) | N9: 9 (90 yrs) | O9: 10 (100 yrs) | P9: 11 (110 yrs) | Q9: 12 (120 yrs) | R9: 13 (130 yrs) | S9: 14 (140 yrs) | T9: 15 (150 yrs) | U9: 16 (160 yrs) | V9: 17 (170 yrs) | W9: 18 (180 yrs) | X9: 19 (190 yrs) | Y9: 20 (200 yrs)
B10: Active | C10: 1
B11: Active | C11: 2
B12: Active | C12: 3
B13: Active | C13: 4
B14: Active | C14: 5
B15: Active | C15: 6
B16: Active | C16: 7
B17: Active | C17: 8
B18: Active | C18: 9
B19: Active | C19: 10
B20: Active | C20: 11

Sheet Seedling Data
A1: Instructions: 1. First reset the sheet using the button Reset Sheet 2. Prepare the sheet by using the button Prepare Sheet 3. Enter the data and move on to the next sheet Taper Data *Please enter values only in cells that are highlighted in GREY
O2: Stump analysis - Seedling Data
AB3: Species: | AC3: ='Stump Analysis Data'!T2 -> Shorea Robusta
B8: No of groups in the class | E8: ='Stump Analysis Data'!E6 -> 11
B12: Row Status | C12: Group no. | D12: Age at successive heights from ground level
D13: Ground level | F13: 10 cm | H13: 20 cm | J13: 30 cm | L13: 40 cm | N13: 50 cm | P13: 60 cm | R13: 70 cm | T13: 80 cm | V13: 100 cm | X13: 120 cm | Z13: 140 cm | AB13: 160 cm | AD13: 180 cm
D14: Rings | E14: Age | F14: Rings | G14: Age | H14: Rings | I14: Age | J14: Rings | K14: Age | L14: Rings | M14: Age | N14: Rings | O14: Age | P14: Rings | Q14: Age | R14: Rings | S14: Age | T14: Rings | U14: Age | V14: Rings | W14: Age | X14: Rings | Y14: Age | Z14: Rings | AA14: Age | AB14: Rings | AC14: Age | AD14: Rings | AE14: Age
B15: Active | C15: 1 | D15: 25 | E15: 0 | F15: 25 | G15: =D15-F15+E15 -> 0 | H15: 24 | I15: =F15-H15+G15 -> 1 | J15: 23 | K15: =H15-J15+I15 -> 2 | L15: 23 | M15: =J15-L15+K15 -> 2 | N15: 22 | O15: =L15-N15+M15 -> 3 | P15: 22 | Q15: =N15-P15+O15 -> 3 | R15: 21 | S15: =P15-R15+Q15 -> 4 | T15: 20 | U15: =R15-T15+S15 -> 5 | V15: 19 | W15: =T15-V15+U15 -> 6 | X15: 18 | Y15: =V15-X15+W15 -> 7 | Z15: 17 | AA15: =X15-Z15+Y15 -> 8 | AB15: 16 | AC15: =Z15-AB15+AA15 -> 9 | AD15: 14 | AE15: =AB15-AD15+AC15 -> 11
B16: Active | C16: =C15+1 -> 2 | D16: 24 | E16: 0 | F16: 22 | G16: 2 | H16: 21 | I16: 3 | J16: 20 | K16: 4 | L16: 19 | M16: 5 | N16: 18 | O16: 6 | P16: 18 | Q16: 6 | R16: 17 | S16: 7 | T16: 16 | U16: 8 | V16: 14 | W16: 10 | X16: 13 | Y16: 11 | Z16: 12 | AA16: 12 | AB16: 12 | AC16: 12 | AD16: 12 | AE16: 12
B17: Active | C17: 3 | D17: 22 | E17: 0 | F17: 20 | G17: 2 | H17: 19 | I17: 3 | J17: 17 | K17: 5 | L17: 17 | M17: 5 | N17: 16 | O17: 6 | P17: 15 | Q17: 7 | R17: 14 | S17: 8 | T17: 14 | U17: 8 | V17: 13 | W17: 9 | X17: 13 | Y17: 9 | Z17: 12 | AA17: 10 | AB17: 12 | AC17: 10 | AD17: 11 | AE17: 11
B18: Active | C18: 4 | D18: 25 | E18: 0 | F18: 24 | G18: 1 | H18: 23 | I18: 2 | J18: 22 | K18: 3 | L18: 22 | M18: 3 | N18: 21 | O18: 4 | P18: 20 | Q18: 5 | R18: 19 | S18: 6 | T18: 19 | U18: 6 | V18: 18 | W18: 7 | X18: 18 | Y18: 7 | Z18: 18 | AA18: 7 | AB18: 17 | AC18: 8 | AD18: 16 | AE18: 9
B19: Active | C19: 5 | D19: 30 | E19: 0 | F19: 29 | G19: 1 | H19: 28 | I19: 2 | J19: 28 | K19: 2 | L19: 27 | M19: 3 | N19: 27 | O19: 3 | P19: 26 | Q19: 4 | R19: 26 | S19: 4 | T19: 24 | U19: 6 | V19: 23 | W19: 7 | X19: 21 | Y19: 9 | Z19: 19 | AA19: 11 | AB19: 17 | AC19: 13 | AD19: 15 | AE19: 15
B20: Active | C20: 6 | D20: 23 | E20: 0 | F20: 22 | G20: 1 | H20: 21 | I20: 2 | J20: 20 | K20: 3 | L20: 18 | M20: 5 | N20: 18 | O20: 5 | P20: 16 | Q20: 7 | R20: 14 | S20: 9 | T20: 14 | U20: 9 | V20: 13 | W20: 10 | X20: 12 | Y20: 11 | Z20: 11 | AA20: 12 | AB20: 11 | AC20: 12 | AD20: 10 | AE20: 13
B21: Active | C21: 7 | D21: 27 | E21: 0 | F21: 26 | G21: 1 | H21: 24 | I21: 3 | J21: 23 | K21: 4 | L21: 23 | M21: 4 | N21: 22 | O21: 5 | P21: 22 | Q21: 5 | R21: 21 | S21: 6 | T21: 20 | U21: 7 | V21: 20 | W21: 7 | X21: 17 | Y21: 10 | Z21: 16 | AA21: 11 | AB21: 15 | AC21: 12 | AD21: 13 | AE21: 14
B22: Active | C22: 8 | D22: 21 | E22: 0 | F22: 20 | G22: 1 | H22: 19 | I22: 2 | J22: 19 | K22: 2 | L22: 18 | M22: 3 | N22: 18 | O22: 3 | P22: 18 | Q22: 3 | R22: 18 | S22: 3 | T22: 17 | U22: 4 | V22: 16 | W22: 5 | X22: 15 | Y22: 6 | Z22: 14 | AA22: 7 | AB22: 13 | AC22: 8 | AD22: 12 | AE22: 9
B23: Total | D23: =SUM(D15:D22) -> 197 | E23: 0 | F23: 188 | G23: 9 | H23: 179 | I23: 18 | J23: 172 | K23: 25 | L23: 167 | M23: 30 | N23: 162 | O23: 35 | P23: 157 | Q23: 40 | R23: 150 | S23: 47 | T23: 144 | U23: 53 | V23: 136 | W23: 61 | X23: 127 | Y23: 70 | Z23: 119 | AA23: 78 | AB23: 113 | AC23: 84 | AD23: 103 | AE23: 94
B24: Average | D24: =SUBTOTAL(1, D15:D22) -> 24.625 | E24: 0 | F24: 23.5 | G24: 1.125 | H24: 22.375 | I24: 2.25 | J24: 21.5 | K24: 3.125 | L24: 20.875 | M24: 3.75 | N24: 20.25 | O24: 4.375 | P24: 19.625 | Q24: 5 | R24: 18.75 | S24: 5.875 | T24: 18 | U24: 6.625 | V24: 17 | W24: 7.625 | X24: 15.875 | Y24: 8.75 | Z24: 14.875 | AA24: 9.75 | AB24: 14.125 | AC24: 10.5 | AD24: 12.875 | AE24: 11.75

Sheet Taper Data
A1: Instructions: 1. First reset the sheet using the button Reset Sheet 2. Prepare the sheet by using the button Prepare Sheet 3. Enter the data and press the button Process all data, generate graphs & export to PDF *Please enter values only in cells that are highlighted in GREY
P2: Stump Analysis - Taper Data
A5: Species: | C5: ='Stump Analysis Data'!T2 -> Shorea Robusta
A7: No of groups in the class | E7: ='Stump Analysis Data'!E6 -> 11
A9: Group No. | B9: D.b.h. Class 10-20 | F9: D.b.h. class 20-30 | J9: D.b.h. Class 30-40 | N9: D.b.h. Class 40-50 | R9: D.b.h Class 50-60 | V9: D.b.h. Class 60-70 | Z9: D.b.h. Class 70-80 | AD9: D.b.h. class 80-90 | AH9: D.b.h. Class 90-100 | AL9: D.b.h. Class 100-110 | AP9: D.b.h Class 110-120 | AT9: D.b.h. Class 120-130
B10: Dia. ub | E10: D.b.h. o.b. | F10: Dia. Ub | I10: D.b.h. o.b. | M10: D.b.h. o.b. | N10: Dia. ub | Q10: D.b.h. o.b. | U10: D.b.h. o.b. | V10: Dia. ub | Y10: D.b.h. o.b. | Z10: Dia. ub | AC10: D.b.h. o.b. | AD10: Dia. Ub | AG10: D.b.h. o.b. | AH10: Dia. Ub | AK10: D.b.h. o.b. | AL10: Dia. ub | AO10: D.b.h. o.b. | AP10: Dia. Ub | AS10: D.b.h. o.b. | AT10: Dia. ub | AW10: D.b.h. o.b.
B12: At 15 cm | C12: At 45 cm | D12: At 75 cm | F12: At 15 cm | G12: At 45 cm | H12: At 75 cm | J12: At 15 cm | K12: At 45 cm | L12: At 75 cm | N12: At 15 cm | O12: At 45 cm | P12: At 75 cm | R12: At 15 cm | S12: At 45 cm | T12: At 75 cm | V12: At 15 cm | W12: At 45 cm | X12: At 75 cm | Z12: At cm | AA12: At cm | AB12: At cm | AD12: At cm | AE12: At cm | AF12: At cm | AH12: At cm | AI12: At cm | AJ12: At cm | AL12: At cm | AM12: At cm | AN12: At cm | AP12: At cm | AQ12: At cm | AR12: At cm | AT12: At cm | AU12: At cm | AV12: At cm
A14: 1 | B14: 20.1 | C14: 18.8 | D14: 18.3 | E14: 17.5 | F14: 29.5 | G14: 28 | H14: 26.6 | I14: 26.8 | J14: 45.7 | K14: 41.1 | L14: 38.4 | M14: 38.6
A15: =A14+1 -> 2 | B15: 12.3 | C15: 11.3 | D15: 11 | E15: 11.8 | F15: 21.9 | G15: 20.9 | H15: 20.5 | I15: 20.2 | J15: 41.6 | K15: 37.3 | L15: 36.6 | M15: 37.1
A16: 3 | B16: 13.1 | C16: 12 | D16: 11.6 | E16: 10.45 | F16: 34.6 | G16: 30.5 | H16: 29.35 | I16: 29.8 | J16: 50.25 | K16: 45.2 | L16: 42.4 | M16: 39.5
A17: 4 | N17: 49.7 | O17: 44.8 | P17: 43 | Q17: 42.4 | R17: 65.2 | S17: 59.6 | T17: 54.4 | U17: 53.3 | V17: 80.5 | W17: 73.6 | X17: 68.1 | Y17: 62.7
A18: 5 | N18: 49 | O18: 44.8 | P18: 42.6 | Q18: 46.5 | R18: 54 | S18: 53.2 | T18: 52.5 | U18: 52 | V18: 68.9 | W18: 67.9 | X18: 65.2 | Y18: 63
A19: 6 | N19: 53.25 | O19: 48.95 | P19: 46.5 | Q19: 48 | R19: 57.3 | S19: 54.3 | T19: 52.5 | U19: 51.9 | V19: 83 | W19: 77.6 | X19: 70.3 | Y19: 67.7
A20: 7 | Z20: 86 | AA20: 81 | AB20: 76.5 | AC20: 75 | AD20: 80 | AE20: 78 | AF20: 77.5 | AG20: 81.5 | AH20: 95 | AI20: 90 | AJ20: 89.4 | AK20: 92.5
A21: 8 | Z21: 83.1 | AA21: 70.7 | AB21: 67.7 | AC21: 72 | AD21: 91.5 | AE21: 85.3 | AF21: 82.1 | AG21: 86.1 | AH21: 105.7 | AI21: 90 | AJ21: 86.2 | AK21: 90.5
A22: Total | B22: =SUM(B14:B21) -> 45.5 | C22: 42.1 | D22: 40.9 | E22: 39.75 | F22: 86 | G22: 79.4 | H22: 76.45 | I22: 76.8 | J22: 137.55 | K22: 123.6 | L22: 117.4 | M22: 115.2 | N22: 151.95 | O22: 138.55 | P22: 132.1 | Q22: 136.9 | R22: 176.5 | S22: 167.1 | T22: 159.4 | U22: 157.2 | V22: 232.4 | W22: 219.1 | X22: 203.6 | Y22: 193.4 | Z22: 169.1 | AA22: 151.7 | AB22: 144.2 | AC22: 147 | AD22: 171.5 | AE22: 163.3 | AF22: 159.6 | AG22: 167.6 | AH22: 200.7 | AI22: 180 | AJ22: 175.6 | AK22: 183 | AL22: 0 | AM22: 0 | AN22: 0 | AO22: 0 | AP22: 0 | AQ22: 0 | AR22: 0 | AS22: 0 | AT22: 0 | AU22: 0 | AV22: 0 | AW22: 0
A23: Average | B23: =B22/COUNT(B14:B21) -> 15.16666667 | C23: =IF(C22=0, "", C22/COUNT(C14:C21)) -> 14.03333333 | D23: 13.63333333 | E23: 13.25 | F23: 28.66666667 | G23: 26.46666667 | H23: 25.48333333 | I23: 25.6 | J23: 45.85 | K23: 41.2 | L23: 39.13333333 | M23: 38.4 | N23: 50.65 | O23: 46.18333333 | P23: 44.03333333 | Q23: 45.63333333 | R23: 58.83333333 | S23: 55.7 | T23: 53.13333333 | U23: 52.4 | V23: 77.46666667 | W23: 73.03333333 | X23: 67.86666667 | Y23: 64.46666667 | Z23: 84.55 | AA23: 75.85 | AB23: 72.1 | AC23: 73.5 | AD23: 85.75 | AE23: 81.65 | AF23: 79.8 | AG23: 83.8 | AH23: 100.35 | AI23: 90 | AJ23: 87.8 | AK23: 91.5

Sheet Height-Age
B2: Data of Seedling Data:
B4: No of groups in the class | D4: ='Stump Analysis Data'!E6 -> 11 | O4: Age at Breast Height = | Q4: 9.521218879
B6: S No. | C6: Height (y axis) (in cms) | D6: Age (x axis) (in years) | I6: Height v/s Age Graph from Consolidated Seedling Data
B7: 1 | C7: 0 | D7: 0
B8: 2 | C8: 10 | D8: 1.125
B9: 3 | C9: 20 | D9: 2.25
B10: 4 | C10: 30 | D10: 3.125
B11: 5 | C11: 40 | D11: 3.75
B12: 6 | C12: 50 | D12: 4.375
B13: 7 | C13: 60 | D13: 5
B14: 8 | C14: 70 | D14: 5.875
B15: 9 | C15: 80 | D15: 6.625
B16: 10 | C16: 100 | D16: 7.625
B17: 11 | C17: 120 | D17: 8.75
B18: 12 | C18: 140 | D18: 9.75
B19: 13 | C19: 160 | D19: 10.5
B20: 14 | C20: 180 | D20: 11.75
B21: Total | C21: =SUM(C7:C20) -> 1060 | D21: =SUM(D7:D20) -> 80.5

Sheet Output 3 (hidden)
A1: Calculations of Form 3
A3: No of groups in the class | E3: 8
A5: D.b.h. Class 10-20 | G5: D.b.h. Class 20-30 | M5: D.b.h. Class 30-40 | S5: D.b.h. Class 40-50 | Y5: D.b.h Class 50-60 | AE5: D.b.h. Class 60-70 | AK5: D.b.h. Class 70-80 | AQ5: D.b.h. class 80-90 | AW5: D.b.h. Class 90-100 | BC5: D.b.h. Class 100-110 | BI5: D.b.h Class 110-120 | BO5: D.b.h. Class 120-130
A6: DBH | B6: 13.25 | G6: DBH | H6: 25.6 | M6: DBH | N6: 38.4 | S6: DBH | T6: 45.63333333 | Y6: DBH | Z6: 52.4 | AE6: DBH | AF6: 64.46666667 | AK6: DBH | AL6: 73.5 | AQ6: DBH | AR6: 83.8 | AW6: DBH | AX6: 91.5 | BC6: DBH | BI6: DBH | BO6: DBH
B8: Height | C8: DUB | H8: Height | I8: DUB | N8: Height | O8: DUB | T8: Height | U8: DUB | Z8: Height | AA8: DUB | AF8: Height | AG8: DUB | AL8: Height | AM8: DUB | AR8: Height | AS8: DUB | AX8: Height | AY8: DUB | BD8: Height | BE8: DUB | BJ8: Height | BK8: DUB | BP8: Height | BQ8: DUB
B9: x | C9: y | D9: x*x | E9: x*y | H9: x | I9: y | J9: x*x | K9: x*y | N9: x | O9: y | P9: x*x | Q9: x*y | T9: x | U9: y | V9: x*x | W9: x*y | Z9: x | AA9: y | AB9: x*x | AC9: x*y | AF9: x | AG9: y | AH9: x*x | AI9: x*y | AL9: x | AM9: y | AN9: x*x | AO9: x*y | AR9: x | AS9: y | AT9: x*x | AU9: x*y | AX9: x | AY9: y | AZ9: x*x | BA9: x*y | BD9: x | BE9: y | BF9: x*x | BG9: x*y | BJ9: x | BK9: y | BL9: x*x | BM9: x*y | BP9: x | BQ9: y | BR9: x*x | BS9: x*y
B10: 15 | C10: 15.16666667 | D10: =B10*B10 -> 225 | E10: =B10*C10 -> 227.5 | H10: 15 | I10: 28.66666667 | J10: =H10*H10 -> 225 | K10: =H10*I10 -> 430 | N10: 15 | O10: 45.85 | P10: =N10*N10 -> 225 | Q10: =N10*O10 -> 687.75 | T10: 15 | U10: 50.65 | V10: =T10*T10 -> 225 | W10: =T10*U10 -> 759.75 | Z10: 15 | AA10: 58.83333333 | AB10: =Z10*Z10 -> 225 | AC10: =Z10*AA10 -> 882.5 | AF10: 15 | AG10: 77.46666667 | AH10: =AF10*AF10 -> 225 | AI10: =AF10*AG10 -> 1162 | AL10: 15 | AM10: 84.55 | AN10: =AL10*AL10 -> 225 | AO10: =AL10*AM10 -> 1268.25 | AR10: 15 | AS10: 85.75 | AT10: =AR10*AR10 -> 225 | AU10: =AR10*AS10 -> 1286.25 | AX10: 15 | AY10: 100.35 | AZ10: =AX10*AX10 -> 225 | BA10: =AX10*AY10 -> 1505.25 | BD10: 15 | BF10: =BD10*BD10 -> 225 | BG10: =BD10*BE10 -> 0 | BJ10: 15 | BL10: =BJ10*BJ10 -> 225 | BM10: =BJ10*BK10 -> 0 | BP10: 15 | BR10: =BP10*BP10 -> 225 | BS10: =BP10*BQ10 -> 0
B11: 45 | C11: 14.03333333 | D11: =B11*B11 -> 2025 | E11: =B11*C11 -> 631.5 | H11: 45 | I11: 26.46666667 | J11: =H11*H11 -> 2025 | K11: =H11*I11 -> 1191 | N11: 45 | O11: 41.2 | P11: =N11*N11 -> 2025 | Q11: =N11*O11 -> 1854 | T11: 45 | U11: 46.18333333 | V11: =T11*T11 -> 2025 | W11: =T11*U11 -> 2078.25 | Z11: 45 | AA11: 55.7 | AB11: =Z11*Z11 -> 2025 | AC11: =Z11*AA11 -> 2506.5 | AF11: 45 | AG11: 73.03333333 | AH11: =AF11*AF11 -> 2025 | AI11: =AF11*AG11 -> 3286.5 | AL11: 45 | AM11: 75.85 | AN11: =AL11*AL11 -> 2025 | AO11: =AL11*AM11 -> 3413.25 | AR11: 45 | AS11: 81.65 | AT11: =AR11*AR11 -> 2025 | AU11: =AR11*AS11 -> 3674.25 | AX11: 45 | AY11: 90 | AZ11: =AX11*AX11 -> 2025 | BA11: =AX11*AY11 -> 4050 | BD11: 45 | BF11: =BD11*BD11 -> 2025 | BG11: =BD11*BE11 -> 0 | BJ11: 45 | BL11: =BJ11*BJ11 -> 2025 | BM11: =BJ11*BK11 -> 0 | BP11: 45 | BR11: =BP11*BP11 -> 2025 | BS11: =BP11*BQ11 -> 0
B12: 75 | C12: 13.63333333 | D12: 5625 | E12: 1022.5 | H12: 75 | I12: 25.48333333 | J12: 5625 | K12: 1911.25 | N12: 75 | O12: 39.13333333 | P12: 5625 | Q12: 2935 | T12: 75 | U12: 44.03333333 | V12: 5625 | W12: 3302.5 | Z12: 75 | AA12: 53.13333333 | AB12: 5625 | AC12: 3985 | AF12: 75 | AG12: 67.86666667 | AH12: 5625 | AI12: 5090 | AL12: 75 | AM12: 72.1 | AN12: 5625 | AO12: 5407.5 | AR12: 75 | AS12: 79.8 | AT12: 5625 | AU12: 5985 | AX12: 75 | AY12: 87.8 | AZ12: 5625 | BA12: 6585 | BD12: 75 | BF12: 5625 | BG12: 0 | BJ12: 75 | BL12: 5625 | BM12: 0 | BP12: 75 | BR12: 5625 | BS12: 0
A13: Sum | B13: =SUM(B10:B12) -> 135 | C13: =SUM(C10:C12) -> 42.83333333 | D13: 7875 | E13: 1881.5 | G13: Sum | H13: =SUM(H10:H12) -> 135 | I13: =SUM(I10:I12) -> 80.61666667 | J13: =SUM(J10:J12) -> 7875 | K13: =SUM(K10:K12) -> 3532.25 | M13: Sum | N13: =SUM(N10:N12) -> 135 | O13: =SUM(O10:O12) -> 126.1833333 | P13: =SUM(P10:P12) -> 7875 | Q13: =SUM(Q10:Q12) -> 5476.75 | S13: Sum | T13: =SUM(T10:T12) -> 135 | U13: =SUM(U10:U12) -> 140.8666667 | V13: =SUM(V10:V12) -> 7875 | W13: =SUM(W10:W12) -> 6140.5 | Y13: Sum | Z13: =SUM(Z10:Z12) -> 135 | AA13: =SUM(AA10:AA12) -> 167.6666667 | AB13: =SUM(AB10:AB12) -> 7875 | AC13: =SUM(AC10:AC12) -> 7374 | AE13: Sum | AF13: =SUM(AF10:AF12) -> 135 | AG13: =SUM(AG10:AG12) -> 218.3666667 | AH13: =SUM(AH10:AH12) -> 7875 | AI13: =SUM(AI10:AI12) -> 9538.5 | AK13: Sum | AL13: =SUM(AL10:AL12) -> 135 | AM13: =SUM(AM10:AM12) -> 232.5 | AN13: =SUM(AN10:AN12) -> 7875 | AO13: =SUM(AO10:AO12) -> 10089 | AQ13: Sum | AR13: =SUM(AR10:AR12) -> 135 | AS13: =SUM(AS10:AS12) -> 247.2 | AT13: =SUM(AT10:AT12) -> 7875 | AU13: =SUM(AU10:AU12) -> 10945.5 | AW13: Sum | AX13: =SUM(AX10:AX12) -> 135 | AY13: =SUM(AY10:AY12) -> 278.15 | AZ13: =SUM(AZ10:AZ12) -> 7875 | BA13: =SUM(BA10:BA12) -> 12140.25 | BC13: Sum | BD13: =SUM(BD10:BD12) -> 135 | BE13: =SUM(BE10:BE12) -> 0 | BF13: 7875 | BG13: 0 | BI13: Sum | BJ13: =SUM(BJ10:BJ12) -> 135 | BK13: =SUM(BK10:BK12) -> 0 | BL13: 7875 | BM13: 0 | BO13: Sum | BP13: =SUM(BP10:BP12) -> 135 | BQ13: =SUM(BQ10:BQ12) -> 0 | BR13: 7875 | BS13: 0
A15: Sxx | B15: =(3*D13-(B13*B13))/3 -> 1800 | G15: Sxx | H15: =(3*J13-(H13*H13))/3 -> 1800 | M15: Sxx | N15: =(3*P13-(N13*N13))/3 -> 1800 | S15: Sxx | T15: =(3*V13-(T13*T13))/3 -> 1800 | Y15: Sxx | Z15: =(3*AB13-(Z13*Z13))/3 -> 1800 | AE15: Sxx | AF15: =(3*AH13-(AF13*AF13))/3 -> 1800 | AK15: Sxx | AL15: =(3*AN13-(AL13*AL13))/3 -> 1800 | AQ15: Sxx | AR15: =(3*AT13-(AR13*AR13))/3 -> 1800 | AW15: Sxx | AX15: =(3*AZ13-(AX13*AX13))/3 -> 1800 | BC15: Sxx | BD15: =(3*BF13-(BD13*BD13))/3 -> 1800 | BI15: Sxx | BJ15: =(3*BL13-(BJ13*BJ13))/3 -> 1800 | BO15: Sxx | BP15: =(3*BR13-(BP13*BP13))/3 -> 1800
A16: Sxy | B16: =(3*E13-(B13*C13))/3 -> -46 | G16: Sxy | H16: =(3*K13-(H13*I13))/3 -> -95.5 | M16: Sxy | N16: =(3*Q13-(N13*O13))/3 -> -201.5 | S16: Sxy | T16: =(3*W13-(T13*U13))/3 -> -198.5 | Y16: Sxy | Z16: =(3*AC13-(Z13*AA13))/3 -> -171 | AE16: Sxy | AF16: =(3*AI13-(AF13*AG13))/3 -> -288 | AK16: Sxy | AL16: =(3*AO13-(AL13*AM13))/3 -> -373.5 | AQ16: Sxy | AR16: =(3*AU13-(AR13*AS13))/3 -> -178.5 | AW16: Sxy | AX16: =(3*BA13-(AX13*AY13))/3 -> -376.5 | BC16: Sxy | BD16: =(3*BG13-(BD13*BE13))/3 -> 0 | BI16: Sxy | BJ16: =(3*BM13-(BJ13*BK13))/3 -> 0 | BO16: Sxy | BP16: =(3*BS13-(BP13*BQ13))/3 -> 0
A17: b | B17: =B16/B15 -> -0.02555555556 | G17: b | H17: =H16/H15 -> -0.05305555556 | M17: b | N17: =N16/N15 -> -0.1119444444 | S17: b | T17: =T16/T15 -> -0.1102777778 | Y17: b | Z17: =Z16/Z15 -> -0.095 | AE17: b | AF17: =AF16/AF15 -> -0.16 | AK17: b | AL17: =AL16/AL15 -> -0.2075 | AQ17: b | AR17: =AR16/AR15 -> -0.09916666667 | AW17: b | AX17: =AX16/AX15 -> -0.2091666667 | BC17: b | BD17: =BD16/BD15 -> 0 | BI17: b | BJ17: =BJ16/BJ15 -> 0 | BO17: b | BP17: =BP16/BP15 -> 0
A18: a | B18: =(C13-(B13*B17))/3 -> 15.42777778 | G18: a | H18: =(I13-(H13*H17))/3 -> 29.25972222 | M18: a | N18: =(O13-(N13*N17))/3 -> 47.09861111 | S18: a | T18: =(U13-(T13*T17))/3 -> 51.91805556 | Y18: a | Z18: =(AA13-(Z13*Z17))/3 -> 60.16388889 | AE18: a | AF18: =(AG13-(AF13*AF17))/3 -> 79.98888889 | AK18: a | AL18: =(AM13-(AL13*AL17))/3 -> 86.8375 | AQ18: a | AR18: =(AS13-(AR13*AR17))/3 -> 86.8625 | AW18: a | AX18: =(AY13-(AX13*AX17))/3 -> 102.1291667 | BC18: a | BD18: =(BE13-(BD13*BD17))/3 -> 0 | BI18: a | BJ18: =(BK13-(BJ13*BJ17))/3 -> 0 | BO18: a | BP18: =(BQ13-(BP13*BP17))/3 -> 0
A19: x= | B19: 8 | G19: x= | H19: 8 | M19: x= | N19: 8 | S19: x= | T19: 8 | Y19: x= | Z19: 8 | AE19: x= | AF19: 8 | AK19: x= | AL19: 8 | AQ19: x= | AR19: 8 | AW19: x= | AX19: 8 | BC19: x= | BD19: 8 | BI19: x= | BJ19: 8 | BO19: x= | BP19: 8
A20: For x = 8, y = | C20: =(B17*B19)+B18 -> 15.22333333 | G20: For x = 8, y = | I20: =(H17*H19)+H18 -> 28.83527778 | M20: For x = 8, y = | O20: =(N17*N19)+N18 -> 46.20305556 | S20: For x = 8, y = | U20: =(T17*T19)+T18 -> 51.03583333 | Y20: For x = 8, y = | AA20: =(Z17*Z19)+Z18 -> 59.40388889 | AE20: For x = 8, y = | AG20: =(AF17*AF19)+AF18 -> 78.70888889 | AK20: For x = 8, y = | AM20: =(AL17*AL19)+AL18 -> 85.1775 | AQ20: For x = 8, y = | AS20: =(AR17*AR19)+AR18 -> 86.06916667 | AW20: For x = 8, y = | AY20: =(AX17*AX19)+AX18 -> 100.4558333 | BC20: For x = 8, y = | BE20: =(BD17*BD19)+BD18 -> 0 | BI20: For x = 8, y = | BK20: =(BJ17*BJ19)+BJ18 -> 0 | BO20: For x = 8, y = | BQ20: =(BP17*BP19)+BP18 -> 0

Sheet DUB-DBH(OB)
A1: Data for DBH(OB) v/s DUB Graphs
A3: No of groups in the class | E3: ='Stump Analysis Data'!E6 -> 11 | G3: Number of DBH Classes | J3: =COUNT('Taper Data'!B23:AW23)/4 -> 9
A5: Group no. | B5: Stump Height (cm) | G5: Graph Data | L5: DBH(OB) v/s DUB Graphs for all Groups
G6: Group No | H6: DBH Class | I6: DUB (X) | J6: DBH(OB) (Y)
A7: 1 | B7: =VLOOKUP(A7, 'Stump Analysis Data'!#REF!, 2, 0) ->  | G7: 1 | H7: 0to10 | I7: ='Output 3'!B17*'DUB-DBH(OB)'!B7+'Output 3'!B18 ->  | J7: ='Output 3'!B6 -> 13.25
A8: =A7+1 -> 2 | B8: =VLOOKUP(A8, 'Stump Analysis Data'!#REF!, 2, 0) ->  | H8: 10to20 | I8: ='Output 3'!H17*'DUB-DBH(OB)'!B7+'Output 3'!H18 ->  | J8: ='Output 3'!H6 -> 25.6
A9: 3 | B9: =VLOOKUP(A9, 'Stump Analysis Data'!#REF!, 2, 0) ->  | H9: 20to30 | I9: ='Output 3'!N17*'DUB-DBH(OB)'!B7+'Output 3'!N18 ->  | J9: ='Output 3'!N6 -> 38.4
A10: 4 | B10: =VLOOKUP(A10, 'Stump Analysis Data'!#REF!, 2, 0) ->  | H10: 30to40 | I10: ='Output 3'!T17*'DUB-DBH(OB)'!B7+'Output 3'!T18 ->  | J10: ='Output 3'!T6 -> 45.63333333
A11: 5 | B11: =VLOOKUP(A11, 'Stump Analysis Data'!#REF!, 2, 0) ->  | H11: 40to50 | I11: ='Output 3'!Z17*'DUB-DBH(OB)'!B7+'Output 3'!Z18 ->  | J11: ='Output 3'!Z6 -> 52.4
A12: 6 | B12: =VLOOKUP(A12, 'Stump Analysis Data'!#REF!, 2, 0) ->  | H12: 50to60 | I12: ='Output 3'!AF17*'DUB-DBH(OB)'!B7+'Output 3'!AF18 ->  | J12: ='Output 3'!AF6 -> 64.46666667
A13: 7 | B13: =VLOOKUP(A13, 'Stump Analysis Data'!#REF!, 2, 0) ->  | H13: 60to70 | I13: ='Output 3'!AL17*'DUB-DBH(OB)'!B7+'Output 3'!AL18 ->  | J13: ='Output 3'!AL6 -> 73.5
A14: 8 | B14: =VLOOKUP(A14, 'Stump Analysis Data'!#REF!, 2, 0) ->  | H14: 70to80 | I14: ='Output 3'!AR17*'DUB-DBH(OB)'!B7+'Output 3'!AR18 ->  | J14: ='Output 3'!AR6 -> 83.8
H15: 80to90 | I15: ='Output 3'!AX17*'DUB-DBH(OB)'!B7+'Output 3'!AX18 ->  | J15: ='Output 3'!AX6 -> 91.5
G16: 2 | H16: 0to10 | I16: ='Output 3'!B17*'DUB-DBH(OB)'!B8+'Output 3'!B18 ->  | J16: ='Output 3'!B6 -> 13.25
H17: 10to20 | I17: ='Output 3'!H17*'DUB-DBH(OB)'!B8+'Output 3'!H18 ->  | J17: ='Output 3'!H6 -> 25.6
H18: 20to30 | I18: ='Output 3'!N17*'DUB-DBH(OB)'!B8+'Output 3'!N18 ->  | J18: ='Output 3'!N6 -> 38.4
H19: 30to40 | I19: ='Output 3'!T17*'DUB-DBH(OB)'!B8+'Output 3'!T18 ->  | J19: ='Output 3'!T6 -> 45.63333333
H20: 40to50 | I20: ='Output 3'!Z17*'DUB-DBH(OB)'!B8+'Output 3'!Z18 ->  | J20: ='Output 3'!Z6 -> 52.4
H21: 50to60 | I21: ='Output 3'!AF17*'DUB-DBH(OB)'!B8+'Output 3'!AF18 ->  | J21: ='Output 3'!AF6 -> 64.46666667
H22: 60to70 | I22: ='Output 3'!AL17*'DUB-DBH(OB)'!B8+'Output 3'!AL18 ->  | J22: ='Output 3'!AL6 -> 73.5
H23: 70to80 | I23: ='Output 3'!AR17*'DUB-DBH(OB)'!B8+'Output 3'!AR18 ->  | J23: ='Output 3'!AR6 -> 83.8
H24: 80to90 | I24: ='Output 3'!AX17*'DUB-DBH(OB)'!B8+'Output 3'!AX18 ->  | J24: ='Output 3'!AX6 -> 91.5
G25: 3 | H25: 0to10 | I25: ='Output 3'!B17*'DUB-DBH(OB)'!B9+'Output 3'!B18 ->  | J25: ='Output 3'!B6 -> 13.25
H26: 10to20 | I26: ='Output 3'!H17*'DUB-DBH(OB)'!B9+'Output 3'!H18 ->  | J26: ='Output 3'!H6 -> 25.6
H27: 20to30 | I27: ='Output 3'!N17*'DUB-DBH(OB)'!B9+'Output 3'!N18 ->  | J27: ='Output 3'!N6 -> 38.4
H28: 30to40 | I28: ='Output 3'!T17*'DUB-DBH(OB)'!B9+'Output 3'!T18 ->  | J28: ='Output 3'!T6 -> 45.63333333
H29: 40to50 | I29: ='Output 3'!Z17*'DUB-DBH(OB)'!B9+'Output 3'!Z18 ->  | J29: ='Output 3'!Z6 -> 52.4
H30: 50to60 | I30: ='Output 3'!AF17*'DUB-DBH(OB)'!B9+'Output 3'!AF18 ->  | J30: ='Output 3'!AF6 -> 64.46666667
H31: 60to70 | I31: ='Output 3'!AL17*'DUB-DBH(OB)'!B9+'Output 3'!AL18 ->  | J31: ='Output 3'!AL6 -> 73.5
H32: 70to80 | I32: ='Output 3'!AR17*'DUB-DBH(OB)'!B9+'Output 3'!AR18 ->  | J32: ='Output 3'!AR6 -> 83.8
H33: 80to90 | I33: ='Output 3'!AX17*'DUB-DBH(OB)'!B9+'Output 3'!AX18 ->  | J33: ='Output 3'!AX6 -> 91.5
G34: 4 | H34: 0to10 | I34: ='Output 3'!B17*'DUB-DBH(OB)'!B10+'Output 3'!B18 ->  | J34: ='Output 3'!B6 -> 13.25
H35: 10to20 | I35: ='Output 3'!H17*'DUB-DBH(OB)'!B10+'Output 3'!H18 ->  | J35: ='Output 3'!H6 -> 25.6
H36: 20to30 | I36: ='Output 3'!N17*'DUB-DBH(OB)'!B10+'Output 3'!N18 ->  | J36: ='Output 3'!N6 -> 38.4
H37: 30to40 | I37: ='Output 3'!T17*'DUB-DBH(OB)'!B10+'Output 3'!T18 ->  | J37: ='Output 3'!T6 -> 45.63333333
H38: 40to50 | I38: ='Output 3'!Z17*'DUB-DBH(OB)'!B10+'Output 3'!Z18 ->  | J38: ='Output 3'!Z6 -> 52.4
H39: 50to60 | I39: ='Output 3'!AF17*'DUB-DBH(OB)'!B10+'Output 3'!AF18 ->  | J39: ='Output 3'!AF6 -> 64.46666667
H40: 60to70 | I40: ='Output 3'!AL17*'DUB-DBH(OB)'!B10+'Output 3'!AL18 ->  | J40: ='Output 3'!AL6 -> 73.5
H41: 70to80 | I41: ='Output 3'!AR17*'DUB-DBH(OB)'!B10+'Output 3'!AR18 ->  | J41: ='Output 3'!AR6 -> 83.8
H42: 80to90 | I42: ='Output 3'!AX17*'DUB-DBH(OB)'!B10+'Output 3'!AX18 ->  | J42: ='Output 3'!AX6 -> 91.5
G43: 5 | H43: 0to10 | I43: ='Output 3'!B17*'DUB-DBH(OB)'!B11+'Output 3'!B18 ->  | J43: ='Output 3'!B6 -> 13.25
H44: 10to20 | I44: ='Output 3'!H17*'DUB-DBH(OB)'!B11+'Output 3'!H18 ->  | J44: ='Output 3'!H6 -> 25.6
H45: 20to30 | I45: ='Output 3'!N17*'DUB-DBH(OB)'!B11+'Output 3'!N18 ->  | J45: ='Output 3'!N6 -> 38.4
H46: 30to40 | I46: ='Output 3'!T17*'DUB-DBH(OB)'!B11+'Output 3'!T18 ->  | J46: ='Output 3'!T6 -> 45.63333333
H47: 40to50 | I47: ='Output 3'!Z17*'DUB-DBH(OB)'!B11+'Output 3'!Z18 ->  | J47: ='Output 3'!Z6 -> 52.4
H48: 50to60 | I48: ='Output 3'!AF17*'DUB-DBH(OB)'!B11+'Output 3'!AF18 ->  | J48: ='Output 3'!AF6 -> 64.46666667
H49: 60to70 | I49: ='Output 3'!AL17*'DUB-DBH(OB)'!B11+'Output 3'!AL18 ->  | J49: ='Output 3'!AL6 -> 73.5
H50: 70to80 | I50: ='Output 3'!AR17*'DUB-DBH(OB)'!B11+'Output 3'!AR18 ->  | J50: ='Output 3'!AR6 -> 83.8
H51: 80to90 | I51: ='Output 3'!AX17*'DUB-DBH(OB)'!B11+'Output 3'!AX18 ->  | J51: ='Output 3'!AX6 -> 91.5
G52: 6 | H52: 0to10 | I52: ='Output 3'!B17*'DUB-DBH(OB)'!B12+'Output 3'!B18 ->  | J52: ='Output 3'!B6 -> 13.25
H53: 10to20 | I53: ='Output 3'!H17*'DUB-DBH(OB)'!B12+'Output 3'!H18 ->  | J53: ='Output 3'!H6 -> 25.6
H54: 20to30 | I54: ='Output 3'!N17*'DUB-DBH(OB)'!B12+'Output 3'!N18 ->  | J54: ='Output 3'!N6 -> 38.4
H55: 30to40 | I55: ='Output 3'!T17*'DUB-DBH(OB)'!B12+'Output 3'!T18 ->  | J55: ='Output 3'!T6 -> 45.63333333
H56: 40to50 | I56: ='Output 3'!Z17*'DUB-DBH(OB)'!B12+'Output 3'!Z18 ->  | J56: ='Output 3'!Z6 -> 52.4
H57: 50to60 | I57: ='Output 3'!AF17*'DUB-DBH(OB)'!B12+'Output 3'!AF18 ->  | J57: ='Output 3'!AF6 -> 64.46666667
H58: 60to70 | I58: ='Output 3'!AL17*'DUB-DBH(OB)'!B12+'Output 3'!AL18 ->  | J58: ='Output 3'!AL6 -> 73.5
H59: 70to80 | I59: ='Output 3'!AR17*'DUB-DBH(OB)'!B12+'Output 3'!AR18 ->  | J59: ='Output 3'!AR6 -> 83.8
H60: 80to90 | I60: ='Output 3'!AX17*'DUB-DBH(OB)'!B12+'Output 3'!AX18 ->  | J60: ='Output 3'!AX6 -> 91.5
G61: 7 | H61: 0to10 | I61: ='Output 3'!B17*'DUB-DBH(OB)'!B13+'Output 3'!B18 ->  | J61: ='Output 3'!B6 -> 13.25
H62: 10to20 | I62: ='Output 3'!H17*'DUB-DBH(OB)'!B13+'Output 3'!H18 ->  | J62: ='Output 3'!H6 -> 25.6
H63: 20to30 | I63: ='Output 3'!N17*'DUB-DBH(OB)'!B13+'Output 3'!N18 ->  | J63: ='Output 3'!N6 -> 38.4
H64: 30to40 | I64: ='Output 3'!T17*'DUB-DBH(OB)'!B13+'Output 3'!T18 ->  | J64: ='Output 3'!T6 -> 45.63333333
H65: 40to50 | I65: ='Output 3'!Z17*'DUB-DBH(OB)'!B13+'Output 3'!Z18 ->  | J65: ='Output 3'!Z6 -> 52.4
H66: 50to60 | I66: ='Output 3'!AF17*'DUB-DBH(OB)'!B13+'Output 3'!AF18 ->  | J66: ='Output 3'!AF6 -> 64.46666667
H67: 60to70 | I67: ='Output 3'!AL17*'DUB-DBH(OB)'!B13+'Output 3'!AL18 ->  | J67: ='Output 3'!AL6 -> 73.5
H68: 70to80 | I68: ='Output 3'!AR17*'DUB-DBH(OB)'!B13+'Output 3'!AR18 ->  | J68: ='Output 3'!AR6 -> 83.8
H69: 80to90 | I69: ='Output 3'!AX17*'DUB-DBH(OB)'!B13+'Output 3'!AX18 ->  | J69: ='Output 3'!AX6 -> 91.5
G70: 8 | H70: 0to10 | I70: ='Output 3'!B17*'DUB-DBH(OB)'!B14+'Output 3'!B18 ->  | J70: ='Output 3'!B6 -> 13.25
H71: 10to20 | I71: ='Output 3'!H17*'DUB-DBH(OB)'!B14+'Output 3'!H18 ->  | J71: ='Output 3'!H6 -> 25.6
H72: 20to30 | I72: ='Output 3'!N17*'DUB-DBH(OB)'!B14+'Output 3'!N18 ->  | J72: ='Output 3'!N6 -> 38.4
H73: 30to40 | I73: ='Output 3'!T17*'DUB-DBH(OB)'!B14+'Output 3'!T18 ->  | J73: ='Output 3'!T6 -> 45.63333333
H74: 40to50 | I74: ='Output 3'!Z17*'DUB-DBH(OB)'!B14+'Output 3'!Z18 ->  | J74: ='Output 3'!Z6 -> 52.4
H75: 50to60 | I75: ='Output 3'!AF17*'DUB-DBH(OB)'!B14+'Output 3'!AF18 ->  | J75: ='Output 3'!AF6 -> 64.46666667
H76: 60to70 | I76: ='Output 3'!AL17*'DUB-DBH(OB)'!B14+'Output 3'!AL18 ->  | J76: ='Output 3'!AL6 -> 73.5
H77: 70to80 | I77: ='Output 3'!AR17*'DUB-DBH(OB)'!B14+'Output 3'!AR18 ->  | J77: ='Output 3'!AR6 -> 83.8
H78: 80to90 | I78: ='Output 3'!AX17*'DUB-DBH(OB)'!B14+'Output 3'!AX18 ->  | J78: ='Output 3'!AX6 -> 91.5

Sheet DBH(OB)-Age
B1: Data for DBH(OB) v/s Age Graphs
B3: Number of DBH Classes | F3: ='DUB-DBH(OB)'!J3 -> 9
B4: No of groups in the class | F4: ='Stump Analysis Data'!E6 -> 11
B6: Group No | C6: No of decades | D6: Age at stump hieght - not corrected (years) | E6: DUB at stump hieght (in cms) | F6: Stump Height | G6: Age at Breast Hieght | H6: DOB at breast hieght (in cms) | J6: DBH(OB) v/s Age Graphs for all Groups
B7: 1 | C7: =COUNT('Stump Analysis Data'!#REF!) -> 0 | D7: 10 | E7: 5.64 | F7: =VLOOKUP(B7, 'DUB-DBH(OB)'!A7:B15, 2, 0) ->  | G7: 11.32538132 | H7: 5.615880155
B8: 1 | D8: 20 | E8: 11.54 | F8: =VLOOKUP(B8, 'DUB-DBH(OB)'!A7:B15, 2, 0) ->  | G8: 21.32538132 | H8: 12.50778372
B9: 1 | D9: 30 | E9: 16.6 | F9: =VLOOKUP(B9, 'DUB-DBH(OB)'!A7:B15, 2, 0) ->  | G9: 31.32538132 | H9: 18.41846711
B10: 1 | D10: 40 | E10: 20.8 | F10: =VLOOKUP(B10, 'DUB-DBH(OB)'!A7:B15, 2, 0) ->  | G10: 41.32538132 | H10: 23.32456795
B11: 1 | D11: 50 | E11: 25 | F11: =VLOOKUP(B11, 'DUB-DBH(OB)'!A7:B15, 2, 0) ->  | G11: 51.32538132 | H11: 28.2306688
B12: 1 | D12: 60 | E12: 29.2 | F12: =VLOOKUP(B12, 'DUB-DBH(OB)'!A7:B15, 2, 0) ->  | G12: 61.32538132 | H12: 33.13676964
B13: 1 | D13: 70 | E13: 32 | F13: =VLOOKUP(B13, 'DUB-DBH(OB)'!A7:B15, 2, 0) ->  | G13: 71.32538132 | H13: 36.40750353
B14: 1 | D14: 80 | E14: 33.6 | F14: =VLOOKUP(B14, 'DUB-DBH(OB)'!A7:B15, 2, 0) ->  | G14: 81.32538132 | H14: 38.27649433
B15: 1 | D15: 90 | E15: 36 | F15: =VLOOKUP(B15, 'DUB-DBH(OB)'!A7:B15, 2, 0) ->  | G15: 91.32538132 | H15: 41.07998052
B16: 1 | D16: 100 | E16: 39.4 | F16: =VLOOKUP(B16, 'DUB-DBH(OB)'!A7:B15, 2, 0) ->  | G16: 101.3253813 | H16: 45.05158597
B17: 1 | D17: 110 | E17: 42.6 | F17: =VLOOKUP(B17, 'DUB-DBH(OB)'!A7:B15, 2, 0) ->  | G17: 111.3253813 | H17: 48.78956756
B18: 1 | D18: 120 | E18: 46.1 | F18: =VLOOKUP(B18, 'DUB-DBH(OB)'!A7:B15, 2, 0) ->  | G18: 121.3253813 | H18: 52.87798493
B19: 2 | C19: =COUNT('Stump Analysis Data'!#REF!) -> 0 | D19: 10 | E19: 6.2 | F19: =VLOOKUP(B19, 'DUB-DBH(OB)'!A7:B15, 2, 0) ->  | G19: 19.02631591 | H19: 3.939351784
B20: 2 | D20: 20 | E20: 10 | F20: =VLOOKUP(B20, 'DUB-DBH(OB)'!A7:B15, 2, 0) ->  | G20: 29.02631591 | H20: 7.430574098
B21: 2 | D21: 30 | E21: 13.1 | F21: =VLOOKUP(B21, 'DUB-DBH(OB)'!A7:B15, 2, 0) ->  | G21: 39.02631591 | H21: 10.27867651
B22: 2 | D22: 40 | E22: 18.2 | F22: =VLOOKUP(B22, 'DUB-DBH(OB)'!A7:B15, 2, 0) ->  | G22: 49.02631591 | H22: 14.96426435
B23: 2 | D23: 50 | E23: 26.3 | F23: =VLOOKUP(B23, 'DUB-DBH(OB)'!A7:B15, 2, 0) ->  | G23: 59.02631591 | H23: 22.40608034
B24: 2 | D24: 60 | E24: 33.1 | F24: =VLOOKUP(B24, 'DUB-DBH(OB)'!A7:B15, 2, 0) ->  | G24: 69.02631591 | H24: 28.6535308
B25: 2 | D25: 70 | E25: 41.4 | F25: =VLOOKUP(B25, 'DUB-DBH(OB)'!A7:B15, 2, 0) ->  | G25: 79.02631591 | H25: 36.27909532
B26: 2 | D26: 80 | E26: 46.4 | F26: =VLOOKUP(B26, 'DUB-DBH(OB)'!A7:B15, 2, 0) ->  | G26: 89.02631591 | H26: 40.87280889
B27: 2 | D27: 90 | E27: 49 | F27: =VLOOKUP(B27, 'DUB-DBH(OB)'!A7:B15, 2, 0) ->  | G27: 99.02631591 | H27: 43.26153995
B28: 2 | D28: 100 | E28: 51 | F28: =VLOOKUP(B28, 'DUB-DBH(OB)'!A7:B15, 2, 0) ->  | G28: 109.0263159 | H28: 45.09902538
B29: 2 | D29: 110 | E29: 53.8 | F29: =VLOOKUP(B29, 'DUB-DBH(OB)'!A7:B15, 2, 0) ->  | G29: 119.0263159 | H29: 47.67150498
B30: 2 | D30: 120 | E30: 58.4 | F30: =VLOOKUP(B30, 'DUB-DBH(OB)'!A7:B15, 2, 0) ->  | G30: 129.0263159 | H30: 51.89772146
B31: 2 | D31: 130 | E31: 61.4 | F31: =VLOOKUP(B31, 'DUB-DBH(OB)'!A7:B15, 2, 0) ->  | G31: 139.0263159 | H31: 54.65394961
B32: 3 | C32: =COUNT('Stump Analysis Data'!#REF!) -> 0 | D32: 10 | E32: 3.5 | F32: =VLOOKUP(B32, 'DUB-DBH(OB)'!A7:B15, 2, 0) ->  | G32: 16.25726535 | H32: 1.778606257
B33: 3 | D33: 20 | E33: 7.5 | F33: =VLOOKUP(B33, 'DUB-DBH(OB)'!A7:B15, 2, 0) ->  | G33: 26.25726535 | H33: 5.862684007
B34: 3 | D34: 30 | E34: 10.75 | F34: =VLOOKUP(B34, 'DUB-DBH(OB)'!A7:B15, 2, 0) ->  | G34: 36.25726535 | H34: 9.180997178
B35: 3 | D35: 40 | E35: 13.85 | F35: =VLOOKUP(B35, 'DUB-DBH(OB)'!A7:B15, 2, 0) ->  | G35: 46.25726535 | H35: 12.34615743
B36: 3 | D36: 50 | E36: 17.9 | F36: =VLOOKUP(B36, 'DUB-DBH(OB)'!A7:B15, 2, 0) ->  | G36: 56.25726535 | H36: 16.48128616
B37: 3 | D37: 60 | E37: 21.55 | F37: =VLOOKUP(B37, 'DUB-DBH(OB)'!A7:B15, 2, 0) ->  | G37: 66.25726535 | H37: 20.2080071
B38: 3 | D38: 70 | E38: 25.75 | F38: =VLOOKUP(B38, 'DUB-DBH(OB)'!A7:B15, 2, 0) ->  | G38: 76.25726535 | H38: 24.49628874
B39: 3 | D39: 80 | E39: 29.95 | F39: =VLOOKUP(B39, 'DUB-DBH(OB)'!A7:B15, 2, 0) ->  | G39: 86.25726535 | H39: 28.78457038
B40: 3 | D40: 90 | E40: 34.15 | F40: =VLOOKUP(B40, 'DUB-DBH(OB)'!A7:B15, 2, 0) ->  | G40: 96.25726535 | H40: 33.07285201
B41: 3 | D41: 100 | E41: 38.1 | F41: =VLOOKUP(B41, 'DUB-DBH(OB)'!A7:B15, 2, 0) ->  | G41: 106.2572653 | H41: 37.10587879
B42: 3 | D42: 110 | E42: 43.25 | F42: =VLOOKUP(B42, 'DUB-DBH(OB)'!A7:B15, 2, 0) ->  | G42: 116.2572653 | H42: 42.36412889
B43: 3 | D43: 120 | E43: 48.85 | F43: =VLOOKUP(B43, 'DUB-DBH(OB)'!A7:B15, 2, 0) ->  | G43: 126.2572653 | H43: 48.08183774
B44: 3 | D44: 130 | E44: 54.15 | F44: =VLOOKUP(B44, 'DUB-DBH(OB)'!A7:B15, 2, 0) ->  | G44: 136.2572653 | H44: 53.49324076
B45: 4 | C45: =COUNT('Stump Analysis Data'!#REF!) -> 0 | D45: 10 | E45: 4.75 | F45: =VLOOKUP(B45, 'DUB-DBH(OB)'!A7:B15, 2, 0) ->  | G45: 17.47111564 | H45: 2.810475032
B46: 4 | D46: 20 | E46: 8.45 | F46: =VLOOKUP(B46, 'DUB-DBH(OB)'!A7:B15, 2, 0) ->  | G46: 27.47111564 | H46: 6.426076505
B47: 4 | D47: 30 | E47: 11.5 | F47: =VLOOKUP(B47, 'DUB-DBH(OB)'!A7:B15, 2, 0) ->  | G47: 37.47111564 | H47: 9.406504746
B48: 4 | D48: 40 | E48: 14.05 | F48: =VLOOKUP(B48, 'DUB-DBH(OB)'!A7:B15, 2, 0) ->  | G48: 47.47111564 | H48: 11.89833819
B49: 4 | D49: 50 | E49: 17.1 | F49: =VLOOKUP(B49, 'DUB-DBH(OB)'!A7:B15, 2, 0) ->  | G49: 57.47111564 | H49: 14.87876643
B50: 4 | D50: 60 | E50: 20.05 | F50: =VLOOKUP(B50, 'DUB-DBH(OB)'!A7:B15, 2, 0) ->  | G50: 67.47111564 | H50: 17.76147572
B51: 4 | D51: 70 | E51: 25.7 | F51: =VLOOKUP(B51, 'DUB-DBH(OB)'!A7:B15, 2, 0) ->  | G51: 77.47111564 | H51: 23.28259688
B52: 4 | D52: 80 | E52: 29 | F52: =VLOOKUP(B52, 'DUB-DBH(OB)'!A7:B15, 2, 0) ->  | G52: 87.47111564 | H52: 26.50732252
B53: 4 | D53: 90 | E53: 32.4 | F53: =VLOOKUP(B53, 'DUB-DBH(OB)'!A7:B15, 2, 0) ->  | G53: 97.47111564 | H53: 29.82976712
B54: 4 | D54: 100 | E54: 35.45 | F54: =VLOOKUP(B54, 'DUB-DBH(OB)'!A7:B15, 2, 0) ->  | G54: 107.4711156 | H54: 32.81019536
B55: 4 | D55: 110 | E55: 39.25 | F55: =VLOOKUP(B55, 'DUB-DBH(OB)'!A7:B15, 2, 0) ->  | G55: 117.4711156 | H55: 36.52351579
B56: 4 | D56: 120 | E56: 43.55 | F56: =VLOOKUP(B56, 'DUB-DBH(OB)'!A7:B15, 2, 0) ->  | G56: 127.4711156 | H56: 40.72543101
B57: 4 | D57: 130 | E57: 48.5 | F57: =VLOOKUP(B57, 'DUB-DBH(OB)'!A7:B15, 2, 0) ->  | G57: 137.4711156 | H57: 45.56251947
B58: 4 | D58: 140 | E58: 51.5 | F58: =VLOOKUP(B58, 'DUB-DBH(OB)'!A7:B15, 2, 0) ->  | G58: 147.4711156 | H58: 48.49408823
B59: 4 | D59: 150 | E59: 54.75 | F59: =VLOOKUP(B59, 'DUB-DBH(OB)'!A7:B15, 2, 0) ->  | G59: 157.4711156 | H59: 51.66995439
B60: 5 | C60: =COUNT('Stump Analysis Data'!#REF!) -> 0 | D60: 10 | E60: 5.35 | F60: =VLOOKUP(B60, 'DUB-DBH(OB)'!A7:B15, 2, 0) ->  | G60: 19.12574817 | H60: 3.14768702
B61: 5 | D61: 20 | E61: 19.9 | F61: =VLOOKUP(B61, 'DUB-DBH(OB)'!A7:B15, 2, 0) ->  | G61: 29.12574817 | H61: 16.46122269
B62: 5 | D62: 30 | E62: 31.1 | F62: =VLOOKUP(B62, 'DUB-DBH(OB)'!A7:B15, 2, 0) ->  | G62: 39.12574817 | H62: 26.70944259
B63: 5 | D63: 40 | E63: 39 | F63: =VLOOKUP(B63, 'DUB-DBH(OB)'!A7:B15, 2, 0) ->  | G63: 49.12574817 | H63: 33.9380977
B64: 5 | D64: 50 | E64: 42.6 | F64: =VLOOKUP(B64, 'DUB-DBH(OB)'!A7:B15, 2, 0) ->  | G64: 59.12574817 | H64: 37.23216839
B65: 5 | D65: 60 | E65: 49.65 | F65: =VLOOKUP(B65, 'DUB-DBH(OB)'!A7:B15, 2, 0) ->  | G65: 69.12574817 | H65: 43.6830568
B66: 5 | D66: 70 | E66: 54.65 | F66: =VLOOKUP(B66, 'DUB-DBH(OB)'!A7:B15, 2, 0) ->  | G66: 79.12574817 | H66: 48.25815497
B67: 5 | D67: 80 | E67: 59.4 | F67: =VLOOKUP(B67, 'DUB-DBH(OB)'!A7:B15, 2, 0) ->  | G67: 89.12574817 | H67: 52.60449824
B68: 5 | D68: 90 | E68: 65 | F68: =VLOOKUP(B68, 'DUB-DBH(OB)'!A7:B15, 2, 0) ->  | G68: 99.12574817 | H68: 57.72860819
B69: 6 | C69: =COUNT('Stump Analysis Data'!#REF!) -> 0 | D69: 10 | E69: 10.75 | F69: =VLOOKUP(B69, 'DUB-DBH(OB)'!A7:B15, 2, 0) ->  | G69: 18.67550331 | H69: 8.233155432
B70: 6 | D70: 20 | E70: 22.15 | F70: =VLOOKUP(B70, 'DUB-DBH(OB)'!A7:B15, 2, 0) ->  | G70: 28.67550331 | H70: 18.85730515
B71: 6 | D71: 30 | E71: 28.35 | F71: =VLOOKUP(B71, 'DUB-DBH(OB)'!A7:B15, 2, 0) ->  | G71: 38.67550331 | H71: 24.63535149
B72: 6 | D72: 40 | E72: 33.7 | F72: =VLOOKUP(B72, 'DUB-DBH(OB)'!A7:B15, 2, 0) ->  | G72: 48.67550331 | H72: 29.62124631
B73: 6 | D73: 50 | E73: 39.45 | F73: =VLOOKUP(B73, 'DUB-DBH(OB)'!A7:B15, 2, 0) ->  | G73: 58.67550331 | H73: 34.97991831
B74: 6 | D74: 60 | E74: 42.45 | F74: =VLOOKUP(B74, 'DUB-DBH(OB)'!A7:B15, 2, 0) ->  | G74: 68.67550331 | H74: 37.77574719
B75: 6 | D75: 70 | E75: 44.7 | F75: =VLOOKUP(B75, 'DUB-DBH(OB)'!A7:B15, 2, 0) ->  | G75: 78.67550331 | H75: 39.87261884
B76: 6 | D76: 80 | E76: 47.9 | F76: =VLOOKUP(B76, 'DUB-DBH(OB)'!A7:B15, 2, 0) ->  | G76: 88.67550331 | H76: 42.85483631
B77: 6 | D77: 90 | E77: 50.9 | F77: =VLOOKUP(B77, 'DUB-DBH(OB)'!A7:B15, 2, 0) ->  | G77: 98.67550331 | H77: 45.65066518
B78: 7 | C78: =COUNT('Stump Analysis Data'!#REF!) -> 0 | D78: 10 | E78: 5.3 | F78: =VLOOKUP(B78, 'DUB-DBH(OB)'!A7:B15, 2, 0) ->  | G78: 16.79443845 | H78: 3.4893523
B79: 7 | D79: 20 | E79: 11.2 | F79: =VLOOKUP(B79, 'DUB-DBH(OB)'!A7:B15, 2, 0) ->  | G79: 26.79443845 | H79: 9.400814355
B80: 7 | D80: 30 | E80: 13.6 | F80: =VLOOKUP(B80, 'DUB-DBH(OB)'!A7:B15, 2, 0) ->  | G80: 36.79443845 | H80: 11.80547689
B81: 7 | D81: 40 | E81: 18.2 | F81: =VLOOKUP(B81, 'DUB-DBH(OB)'!A7:B15, 2, 0) ->  | G81: 46.79443845 | H81: 16.4144134
B82: 7 | D82: 50 | E82: 20 | F82: =VLOOKUP(B82, 'DUB-DBH(OB)'!A7:B15, 2, 0) ->  | G82: 56.79443845 | H82: 18.2179103
B83: 7 | D83: 60 | E83: 20.8 | F83: =VLOOKUP(B83, 'DUB-DBH(OB)'!A7:B15, 2, 0) ->  | G83: 66.79443845 | H83: 19.01946448
B84: 7 | D84: 70 | E84: 22.4 | F84: =VLOOKUP(B84, 'DUB-DBH(OB)'!A7:B15, 2, 0) ->  | G84: 76.79443845 | H84: 20.62257283
B85: 7 | D85: 80 | E85: 26 | F85: =VLOOKUP(B85, 'DUB-DBH(OB)'!A7:B15, 2, 0) ->  | G85: 86.79443845 | H85: 24.22956663
B86: 7 | D86: 90 | E86: 31.2 | F86: =VLOOKUP(B86, 'DUB-DBH(OB)'!A7:B15, 2, 0) ->  | G86: 96.79443845 | H86: 29.43966878
B87: 7 | D87: 100 | E87: 34.4 | F87: =VLOOKUP(B87, 'DUB-DBH(OB)'!A7:B15, 2, 0) ->  | G87: 106.7944384 | H87: 32.64588548
B88: 7 | D88: 110 | E88: 38.4 | F88: =VLOOKUP(B88, 'DUB-DBH(OB)'!A7:B15, 2, 0) ->  | G88: 116.7944384 | H88: 36.65365637
B89: 7 | D89: 120 | E89: 42.2 | F89: =VLOOKUP(B89, 'DUB-DBH(OB)'!A7:B15, 2, 0) ->  | G89: 126.7944384 | H89: 40.46103871
B90: 8 | C90: =COUNT('Stump Analysis Data'!#REF!) -> 0 | D90: 10 | E90: 4.2 | F90: =VLOOKUP(B90, 'DUB-DBH(OB)'!A7:B15, 2, 0) ->  | G90: 19.02631591 | H90: 2.101866356
B91: 8 | D91: 20 | E91: 15.2 | F91: =VLOOKUP(B91, 'DUB-DBH(OB)'!A7:B15, 2, 0) ->  | G91: 29.02631591 | H91: 12.20803621
B92: 8 | D92: 30 | E92: 23.1 | F92: =VLOOKUP(B92, 'DUB-DBH(OB)'!A7:B15, 2, 0) ->  | G92: 39.02631591 | H92: 19.46610365
B93: 8 | D93: 40 | E93: 32.6 | F93: =VLOOKUP(B93, 'DUB-DBH(OB)'!A7:B15, 2, 0) ->  | G93: 49.02631591 | H93: 28.19415944
B94: 8 | D94: 50 | E94: 37.35 | F94: =VLOOKUP(B94, 'DUB-DBH(OB)'!A7:B15, 2, 0) ->  | G94: 59.02631591 | H94: 32.55818733
B95: 8 | D95: 60 | E95: 45.6 | F95: =VLOOKUP(B95, 'DUB-DBH(OB)'!A7:B15, 2, 0) ->  | G95: 69.02631591 | H95: 40.13781472
B96: 8 | D96: 70 | E96: 50.05 | F96: =VLOOKUP(B96, 'DUB-DBH(OB)'!A7:B15, 2, 0) ->  | G96: 79.02631591 | H96: 44.2262198
B97: 8 | D97: 80 | E97: 53.3 | F97: =VLOOKUP(B97, 'DUB-DBH(OB)'!A7:B15, 2, 0) ->  | G97: 89.02631591 | H97: 47.21213362
B98: 8 | D98: 90 | E98: 56.85 | F98: =VLOOKUP(B98, 'DUB-DBH(OB)'!A7:B15, 2, 0) ->  | G98: 99.02631591 | H98: 50.47367026
B99: 8 | D99: 100 | E99: 60.25 | F99: =VLOOKUP(B99, 'DUB-DBH(OB)'!A7:B15, 2, 0) ->  | G99: 109.0263159 | H99: 53.59739549

Sheet Final Graph
B2: Consolidated Graph of All Groups : DBH(OB) v/s Age
B4: No of groups in the class | F4: ='Stump Analysis Data'!E6 -> 11
B5: No of decades covered | F5: 9
B7: Group No. | C7: 1 | D7: 2 | E7: 3 | F7: 4 | G7: 5 | H7: 6 | I7: 7 | J7: 8 | K7: Avg | M7: Consolidated DBH(OB) v/s Age Graph
B8: Age | C8: DBH(OB)
B9: 10 | C9: 4.253191188 | D9: -0.3446370628 | E9: -0.3425416249 | F9: 1.304858591 | G9: -11.85566977 | H9: -1.593507325 | I9: 0.8253879688 | J9: -7.465624594 | K9: =SUBTOTAL(1, C9:J9) -> -1.902317829
B10: 20 | C10: 11.70164138 | D10: 3.222090059 | E10: 3.270983663 | F10: 3.887981107 | G10: 4.669087631 | H10: 9.966153724 | I10: 5.750096122 | J10: 3.184795404 | K10: 5.706603637
B11: 30 | C11: 17.9863628 | D11: 7.535055616 | E11: 6.865254986 | F11: 6.69092215 | G11: 17.33213571 | H11: 18.96690733 | I11: 9.77782184 | J11: 12.61366251 | K11: 12.22101537
B12: 40 | C12: 23.28906288 | D12: 12.41516902 | E12: 10.47740033 | F12: 9.691204884 | G12: 26.8571718 | H12: 25.83495267 | I12: 13.10249203 | J12: 20.90026915 | K12: 17.82096535
B13: 50 | C13: 27.79144907 | D13: 17.6833397 | E13: 14.14454766 | F13: 12.86635248 | G13: 33.96789327 | H13: 30.99648889 | I13: 15.91803361 | J13: 28.12390774 | K13: 22.68650155
B14: 60 | C14: 31.67522879 | D14: 23.16047707 | E14: 17.90382497 | F14: 16.19388809 | G14: 39.38799744 | H14: 34.87771517 | I14: 18.41837348 | J14: 34.3638707 | K14: 26.99767196
B15: 70 | C15: 35.12210949 | D15: 28.66749055 | E15: 21.79236023 | F15: 19.65133489 | G15: 43.84118168 | H15: 37.90483067 | I15: 20.79743854 | J15: 39.69945046 | K15: 30.93452456
B16: 80 | C16: 38.3137986 | D16: 34.02528956 | E16: 25.84728142 | F16: 23.21621605 | G16: 48.05114332 | H16: 40.50403456 | I16: 23.24915572 | J16: 44.20993944 | K16: 34.67710733
B17: 90 | C17: 41.43200357 | D17: 39.0547835 | E17: 30.10571653 | F17: 26.86605472 | G17: 52.74157972 | H17: 43.10152601 | I17: 25.96745192 | J17: 47.97463005 | K17: 38.40546825
